Cogmind - Beta 13 @@@ ROGUE MODE // 2024.04.18 @ 16:09:40 Player: JTMusky Result: Destroyed by S-10 Pest with Light Assault Rifle Performance ------------- Evolutions (0) 0 Regions Visited (1) 200 Robots Destroyed (16) 80 Value Destroyed (263) 263 Prototype IDs (2) 40 Alien Tech Used (0) 0 Bonus (0) 0 TOTAL SCORE: 583 Bonus ------- None Cogmind --------- Core Integrity 0/250 Matter 280/300 Energy 100/100 System Corruption 0% Temperature Cool (0) Movement Walking (120) Location -10/Materials Parts ------- > --- POWER (1) -------- (None) > --- PROPULSION (2) --- Aluminum Leg Aluminum Leg > --- UTILITY (2) ------ Targeting Computer > --- WEAPON (2) ------- Assault Rifle Grenade Launcher > --- INVENTORY (5) ---- Light Treads Light Treads Improved Terrain Scanner Assault Rifle Datajack Peak State ------------ > --- POWER ------------ Light Nuclear Core > --- PROPULSION ------- Wheel Wheel > --- UTILITY ---------- Targeting Computer Targeting Computer > --- WEAPON ----------- Assault Rifle Assault Rifle > --- INVENTORY -------- Light Treads Light Treads Improved Terrain Scanner Assault Rifle [Rating: 9] Favorites ----------- Power Light Ion Engine Engine Light Ion Engine Power Core Light Nuclear Core Propulsion Aluminum Leg Leg Aluminum Leg Wheel Wheel Utility Small Storage Unit Device Seismic Detector Storage Small Storage Unit Processor Targeting Computer Weapon Assault Rifle Ballistic Gun Assault Rifle Launcher Grenade Launcher Build | -11 -10 ------- Run | Yrd Mat Slots Evolved . | . . Power . | . . Propulsion . | . . Utility . | . . Weapon . | . . Parts Attached 19 | 7 12 Power 3 | 1 2 Engine 2 | 1 1 Core 1 | . 1 Reactor . | . . Propulsion 6 | 2 4 Treads . | . . Leg 4 | 2 2 Wheel 2 | . 2 Hover . | . . Flight . | . . Utility 4 | 2 2 Device 1 | 1 . Storage 1 | 1 . Processor 2 | . 2 Hackware . | . . Protection . | . . Artifact . | . . Weapon 6 | 2 4 Energy Gun . | . . Energy Cannon . | . . Ballistic Gun 5 | 2 3 Ballistic Cannon . | . . Launcher 1 | . 1 Special Weapon . | . . Impact Weapon . | . . Slashing Weapon . | . . Piercing Weapon . | . . Special Melee Weapon . | . . Unidentified Prototypes . | . . Parts Lost 8 | . 8 Power 3 | . 3 Propulsion 3 | . 3 Utility 1 | . 1 Weapon 1 | . 1 Highest Loss Streak 5 | . 5 To Critical Strikes . | . . Average Slot Usage (%) 93 | . 93 Engine 9 | . 9 Core 3 | . 3 Leg 19 | . 19 Wheel 7 | . 7 Device 7 | . 7 Storage 8 | . 8 Processor 8 | . 8 Ballistic Gun 25 | . 25 Launcher 2 | . 2 Naked Turns . | . . Heaviest Build 14 | 12 14 Greatest Support 20 | 20 20 Greatest Overweight (x) 2 | 2 . Average Overweight (x) . | . . Largest Inventory Capacity 8 | 8 8 Average Capacity 6 | 7 6 Most Carried 7 | 7 7 Average Carried 5 | 4 5 Final Capacity 8 | 8 5 Final Carried 7 | 7 5 Class Distribution -------------------- 100% | Mutant Dominant Class ---------------- Mutant | -10/Materials Resources | -11 -10 ----------- Run | Yrd Mat Matter Collected 580 | 318 262 Remotely . | . . Salvage Created 418 | 113 305 Parts 33 | 10 23 Haulers Intercepted . | . . Recyclers Shooed 3 | . 3 Parts Field Recycled . | . . Retrieved Matter . | . . Parts Self-Destructed . | . . Prevented . | . . Kills | -11 -10 ------- Run | Yrd Mat Combat Hostiles Destroyed 8 | . 8 Guns 6 | . 6 AOE 2 | . 2 Classes Destroyed 6 | 3 3 Worker 4 | 1 3 Tunneler 2 | 2 . Recycler 1 | 1 . Watcher 1 | . 1 Swarmer 3 | . 3 Grunt 5 | . 5 Best Kill Streak 5 | 3 5 Combat Bots Only 3 | . 3 Max Kills in Single Turn 2 | 1 2 Gunslinging . | . . Exploded 2 | . 2 Melee . | . . Uniques/NPCs Destroyed . | . . Combat | -11 -10 -------- Run | Yrd Mat Hostile Shots Fired 89 | . 89 Missed 15 | . 15 Damage Taken 897 | . 897 Core 251 | . 251 Absorbed by Shields . | . . Core Remaining (%) 100 | 100 . Volleys Fired 57 | 12 45 Largest 2 | 2 2 Hottest 40 | 40 40 Shots Fired 100 | 24 76 Gun 95 | 24 71 Cannon . | . . Launcher 5 | . 5 Special . | . . Kinetic 95 | 24 71 Thermal . | . . Explosive 5 | . 5 Electromagnetic . | . . Robot Hit Streak 11 | 5 11 Robot Miss Streak 5 | 3 5 Penetration Max . | . . Secondary Targets 2 | . 2 Max Gunslinging Chain 1 | . 1 Shots Hit Robots 65 | 14 51 Core Hits 28 | 6 22 Critical Kills . | . . Critical Parts Destroyed . | . . Critical Strikes . | . . Melee Attacks . | . . Impact . | . . Slashing . | . . Piercing . | . . Sneak Attacks . | . . Combat Hostiles . | . . Follow-up Attacks . | . . Damage Inflicted 914 | 161 753 Guns 664 | 161 503 Cannons . | . . Explosions 233 | . 233 Melee . | . . Ramming 17 | . 17 Kinetic 664 | 161 503 Thermal . | . . Explosive 233 | . 233 Electromagnetic . | . . Impact . | . . Slashing . | . . Piercing . | . . Highest Corruption . | . . Average Corruption . | . . Corruption Purged . | . . Corruption Blocked . | . . Overload Shots . | . . Overflow Damage . | . . Projectiles . | . . Explosions . | . . Melee . | . . Knockbacks 1 | . 1 Impact 1 | . 1 Kinetic . | . . Secondary . | . . Self-Inflicted Damage 8 | . 8 Shots . | . . Rammed 2 | . 2 Targets Rammed 2 | . 2 Kicked . | . . Crushed . | . . Highest Temperature 27 | . 27 Average Temperature 9 | . 9 Received Heat Transfer 390 | . 390 Siege Activations . | . . Robots Corrupted . | . . Combat Hostiles . | . . Parts Fried . | . . Impact Corruptions . | . . Robots Melted . | . . Combat Hostiles . | . . Parts Melted . | . . Heat Transferred . | . . Parts Sabotaged . | . . Parts Stolen . | . . Parts Stripped . | . . Power Chain Reactions . | . . Alert | -11 -10 ------- Run | Yrd Mat Peak Influence 220 | 20 220 Initial 13 | . 13 Average 61 | 5 71 Maximum Alert Level 1 | . 1 Low Security (%) 92 | 100 91 Level 1 7 | . 8 Level 2 . | . . Level 3 . | . . Level 4 . | . . Level 5 . | . . High Security . | . . Max Security . | . . Squads Dispatched 2 | . 2 Investigation 1 | . 1 Extermination . | . . Reinforcement 1 | . 1 Assault . | . . Garrison . | . . Intercept . | . . Searches Triggered . | . . Construction Impeded . | . . Haulers Reinforced . | . . Active Scanning Responses . | . . Cargo Convoy Interrupts . | . . Stealth | -11 -10 --------- Run | Yrd Mat Distress Signals 2 | . 2 Communications Jammed . | . . Distress Signals . | . . Times Spotted 24 | . 24 Peak Tracking Total 7 | . 7 Tactical Retreats 3 | . 3 Traps | -11 -10 ------- Run | Yrd Mat Traps Triggered . | . . Indirectly . | . . Trap Hack Attempts . | . . Triggered . | . . Disarmed 1 | . 1 Reprogrammed . | . . Reused . | . . Traps Extracted . | . . Installed . | . . Triggered . | . . Machines | -11 -10 ---------- Run | Yrd Mat Machines Disabled 1 | . 1 Max in Single Turn 1 | . 1 Machines Repaired . | . . Machines Dismantled . | . . Machines Sabotaged . | . . Overloaded Fab Kills . | . . Hacking | -11 -10 --------- Run | Yrd Mat Machines Accessed 3 | . 3 Terminals 3 | . 3 Fabricators . | . . Repair Stations . | . . Recycling Units . | . . Scanalyzers . | . . Garrison Access . | . . Total Hacks 9 | . 9 Successful 5 | . 5 Failed 4 | . 4 Catastrophic . | . . Database Lockouts . | . . Manual . | . . Terminals 9 | . 9 Fabricators . | . . Repair Stations . | . . Recycling Units . | . . Scanalyzers . | . . Garrison Access . | . . Terminal Hacks 5 | . 5 Prototype ID Bank 1 | . 1 Locate Traps 2 | . 2 Disarm Traps 1 | . 1 Zone Layout 1 | . 1 Fabricator Hacks . | . . Repair Station Hacks . | . . Recycling Unit Hacks . | . . Scanalyzer . | . . Garrison Access Hacks . | . . Unauthorized Hacks . | . . Terminals . | . . Fabricators . | . . Repair Stations . | . . Recycling Units . | . . Scanalyzers . | . . Garrison Access . | . . Data Cores Recovered . | . . Used . | . . Hacking Detections 3 | . 3 Full Trace Events 2 | . 2 Feedback Events . | . . Feedback Blocked . | . . Robot Schematics Acquired . | . . Robots Built . | . . Authchips . | . . Time . | . . Total Robot Build Rating . | . . Part Schematics Acquired . | . . Parts Built . | . . Authchips . | . . Time . | . . Total Part Build Rating . | . . Parts Repaired . | . . Time . | . . Parts Recycled . | . . Recycled Matter . | . . Retrieved Matter . | . . Retrieved Components . | . . Parts Scanalyzed . | . . Part Schematics Acquired . | . . Parts Damaged . | . . Bothacking | -11 -10 ------------ Run | Yrd Mat Used RIF Installer . | . . Robots Hacked . | . . Non-combat . | . . Combat . | . . Robot Hacks Applied . | . . Relay Couplers Released . | . . Fabnet Peak Effective % . | . . Robots Rewired . | . . Allies Hacked . | . . Hacks Repelled . | . . Allies | -11 -10 -------- Run | Yrd Mat Total Allies . | . . Largest Group . | . . Highest-Rated Group . | . . Highest-Rated Ally . | . . Total Orders . | . . Ally Attacks . | . . Total Damage . | . . Kills . | . . Allies Corrupted . | . . Allies Melted . | . . Intel | -11 -10 ------- Run | Yrd Mat Robot Analysis Total . | . . Derelict Logs Recovered . | . . Drone Launches . | . . Drone Recoveries . | . . Exploration | -11 -10 ------------- Run | Yrd Mat Turns Passed 1057 | 173 884 Spaces Moved 728 | 103 625 Core 7 | 7 . Treads . | . . Legs 502 | 96 406 Wheels 219 | . 219 Hover . | . . Flight . | . . Fastest Speed 50 | 50 80 Average Speed 107 | 118 105 Slowest Speed 150 | 150 120 Overloaded Moves . | . . Propulsion Burnouts . | . . Robots Hopped . | . . Cave-ins Triggered . | . . Exploration Rate (%) 42 | 6 78 Regions Visited 1 Branch Regions . Pre-discovered Areas . | . . Known Exits Taken . | . . Unknown Exits Taken 1 | 1 . Scrap Searched . | . . Spaces Dug . | . . Terrain Destroyed 30 | . 30 Melee . | . . Projectile . | . . AOE 30 | . 30 Terrain Rammed . | . . Walls Destroyed . | . . Machines Disabled . | . . Actions | -11 -10 --------- Run | Yrd Mat Total 907 | 129 778 Wait 81 | . 81 Move 727 | 102 625 Hop . | . . Pick Up 14 | 8 6 Fast Attach 10 | 6 4 Attach 6 | 1 5 Detach 2 | . 2 Swap 3 | . 3 Drop 5 | . 5 Fire 57 | 12 45 Melee . | . . Ram 2 | . 2 Kick . | . . Crush . | . . Escape Stasis . | . . Rewire . | . . Trap . | . . Miscellaneous . | . . Route ------- -11/Scrapyard -10/Materials (discovered 4 exits: [*Mat x2] / [*Min x2]) History --------- Turn | Location | Event 2 | -11/Scrapyard | Discovered new exit (range 16) 174 | -11/Scrapyard | Entered Materials 308 | -10/Materials | Build established: Mutant 309 | -10/Materials | Discovered new exit (range 11) 380 | -10/Materials | Discovered new exit (range 10) 652 | -10/Materials | Core integrity fell below 50% 668 | -10/Materials | Core integrity fell below 20% 690 | -10/Materials | Lost 5 parts (1p2n1u1w) 690 | -10/Materials | Discovered new exit (range 15) 699 | -10/Materials | Discovered new exit (range 16) 1058 | -10/Materials | Destroyed by S-10 Pest with Light Assault Rifle Last Messages --------------- 00890_ Acquired Grenade Launcher. 00896_ G-34 Mercenary destroyed. 00898_ The unstable cave ceiling collapses. 00903_ Acquired 29 matter. 00904_ Acquired 1 matter. 00916_ Acquired Aluminum Leg. 00916_ R-06 Scavenger collects Aluminum Leg. 00917_ Dropped Wheel. 00919_ R-06 Scavenger collects Aluminum Leg. 00919_ Acquired Aluminum Leg. 00921_ R-06 Scavenger collects Wheel. 00926_ U-05 Engineer lays Concrete. 00929_ U-05 Engineer builds a Wall. 01032_ Terminal disabled. 01032_ K-01 Serf destroyed. 01032_ W-16 Scout destroyed. 01040_ Acquired 21 matter. 01041_ The unstable cave ceiling collapses. 01041_ Acquired 9 matter. 01050_ Lgt. Nuclear Core destroyed. Map ----- +----------------------------------------------------+ | * ############???? | | ############# """ #???? | | ????????????# """ "T" #???? | | ????????????# """ ######### #???? | | ????????????# """ ###"""### #???? | | ????????????# ##"!!!"## #???? | | ????????????# ! #"" ""# #???? | | ????????????# =% # # #???? | | ????????????########### # < # #???? | | ?? ?????????????????# # + #???? | | ?# #????????????????#+##+# # #???? | | ?# #???????????????????? ## ### #???? | | ?+ #????##########?????? ### ####+####? | | ?# #????# #?????" #?# ## ?? | | ?# #????# #?????" #?# o ## ?# | | ?# #????# // #????? #?# ## """ !# | | ?# #????# // #????? ### ## """ # | | ?# #????# / #???## #! """ # | | ?# #????# """ ##### # # | | ?# #????# """ +== + """ # | | ?# #????# """ %##### # """ # | | ?# #????# % #???# sw^ # """ !# | | ## ##???##### #####?#Ts [ ||# # | | # ####### # #### [ | # # | | # t s [ || ######### | | # T @ #???????? | | # #???????? | | # ###### %* ######### #???????? | | # ###????## ####???????# #???????? | | # #???????# !##??????????# #???????? | | # #???????# #???????????# ??????? | | # #???????## #???????????+ < ?????? | | # #????????# #?????????? # #????? | | # #????????# #????????? # #######????? | | # #????????# #????????? ?# #??????????? | | # #????????## ##???????? ?# #??????????? | | # #?????????# #????????! ??# ???????????? | | # #?????????# #????????#???# ???????????? | | # #?????????# #???????????? ???????????? | | # #?????????# #???????????? ???????????? | | # #?????????# #???????????? ???????????? | | # #?????????# #???????????? ???????????? | | # #?????????# #???????????? ????????????? | | # ########### ###???????????????????????? | | # #???????????????????????? | | + #???????????????????????? | | # # """ + + #? | | # ############ ## # # #? | | # #??????????# ########### ###########? | | # #??????????# #???????## ##????????? | +----------------------------------------------------+ Best States ------------- Heat Dissipation 25 Energy Generation 14 Energy Capacity 250 Matter Stores 300 Matter Capacity 300 Sight Range 16 Terrain Scan Density 10 Evasion (%) 55 Targeting Accuracy 10 Item Schematics ----------------- None Robot Schematics ------------------ None Fabricated ------------ Nothing Alien Tech Used ----------------- None Achievements -------------- None Challenges ------------ None Game ------ Seed LobotomyLightpackCore Manual? 0 Play Time 00:20:08 Cumulative 13.2 hours Start 2024.04.17 @ 18:01:32 End 2024.04.18 @ 16:09:40 Sessions 4 Manual Loads 0 Difficulty Rogue Special Mode None Game No. 14 Rogue 14 Adventurer 0 Explorer 0 Win Type - Total 0 Types 0/0/0/0/0/0/0/0/0 Lore% 5 Gallery% 9 Achievement% 7 Wizard Run 0 Options --------- Layout 2 ASCII 1 Keyboard 1 Movement Vi Keybinds 0 Fullscreen 2 Font 40/SmallcapsGlow Map View 50x44 Zoom Use 0% Tactical HUD 1 Map Filters NONE Filters NONE Steam 0 RUN: b70a2917-98a6-4497-9174-16413dc39bff